fUST/lending_fUST_20250702
["ID","MTS","AMOUNT","RATE_DAILY","PERIOD"]
[369002778,1751431842511,-460.0,0.00017416,2]
[369002779,1751431842521,-465.80355262,0.00017416,2]
[369002780,1751431842530,-460.0,0.00017416,2]
[369002781,1751431842539,-198.34,0.00017418,2]
[369002782,1751431842549,-460.0,0.00017418,2]
[369002783,1751431842558,-460.0,0.00017418,2]
[369002784,1751431842567,-460.0,0.00017418,2]
[369002785,1751431842577,-1417.43,0.00017418,2]
[369002786,1751431842587,-460.0,0.00017418,2]
[369002787,1751431842598,-460.0,0.00017418,2]
[369002788,1751431842608,-460.0,0.00017418,2]
[369002789,1751431842617,-460.0,0.00017418,2]
[369002790,1751431842627,-460.0,0.00017418,2]
[369002791,1751431842636,-460.0,0.00017418,2]
[369002792,1751431842645,-588.68,0.00017418,2]
[369002793,1751431842655,-460.0,0.00017418,2]
[369002794,1751431842664,-460.0,0.00017418,2]
[369002795,1751431842674,-652.03,0.00017418,2]
[369002796,1751431842683,-460.0,0.00017418,2]
[369002797,1751431842692,-1826.62,0.00017418,2]
[369002798,1751431842701,-460.0,0.00017515,2]
[369002799,1751431842711,-460.0,0.00017515,2]
[369002800,1751431842720,-460.0,0.00017515,2]
[369002801,1751431842729,-460.0,0.00017515,2]
[369002802,1751431842738,-460.0,0.00017515,2]
[369002803,1751431842747,-460.0,0.00017515,2]
[369002804,1751431842757,-571.85599478,0.00017515,2]
[369002805,1751431842766,-460.0,0.00017515,2]
[369002806,1751431842775,-460.0,0.00017515,2]
[369002807,1751431842785,-492.81081763,0.00017515,2]
[369002808,1751431842794,-460.0,0.00017515,2]
[369002809,1751431842804,-460.0,0.00017515,2]
[369002810,1751431842813,-460.0,0.00017515,2]
[369002811,1751431842823,-460.0,0.00017515,2]
[369002812,1751431842833,-465.38985356,0.00017515,2]
[369002813,1751431842842,-460.0,0.00017515,2]
[369002814,1751431842851,-460.0,0.00017515,2]
[369002815,1751431842860,-460.0,0.00017515,2]
[369002816,1751431842870,-460.0,0.00017515,2]
[369002817,1751431842879,-460.0,0.00017515,2]
[369002818,1751431842889,-460.0,0.00017515,2]
[369002819,1751431842898,-460.0,0.00017515,2]
[369002820,1751431842907,-460.0,0.00017515,2]
[369002821,1751431842917,-460.0,0.00017515,2]
[369002822,1751431842927,-472.1707913,0.00017515,2]
[369002823,1751431842936,-460.0,0.00017515,2]
[369002824,1751431842946,-460.0,0.00017515,2]
[369002825,1751431842955,-460.0,0.00017515,2]
[369002826,1751431842965,-460.0,0.00017515,2]
[369002827,1751431842974,-460.0,0.00017515,2]
[369002828,1751431842984,-460.0,0.00017515,2]
[369002829,1751431842994,-460.0,0.00017515,2]
[369002830,1751431843003,-476.14,0.00017515,2]
[369002831,1751431843012,-460.0,0.00017515,2]
[369002832,1751431843023,-460.0,0.00017515,2]
[369002833,1751431843033,-460.0,0.00017515,2]
[369002834,1751431843042,-460.0,0.00017515,2]
[369002835,1751431843051,-460.0,0.00017515,2]
[369002836,1751431843060,-465.45567467,0.00017515,2]
[369002838,1751431843071,-460.0,0.00017515,2]
[369002839,1751431843080,-255.15218675,0.00017518,2]
[369002840,1751431843089,-537.78,0.00017518,2]
[369002841,1751431843099,-460.0,0.00017518,2]
[369002842,1751431843108,-460.0,0.00017687,2]
[369002843,1751431843117,-460.0,0.00017687,2]
[369002845,1751431843126,-692.3,0.00017687,2]
[369002846,1751431843136,-460.0,0.00017687,2]
[369002847,1751431843145,-460.0,0.00017687,2]
[369002848,1751431843155,-460.0,0.00017687,2]
[369002849,1751431843165,-467.19185381,0.00017687,2]
[369002850,1751431843176,-460.0,0.00017687,2]
[369002851,1751431843186,-1199.76,0.00017687,2]
[369002852,1751431843195,-460.0,0.00017688,2]
[369002853,1751431843204,-719.15,0.00017688,2]
[369002854,1751431843214,-460.0,0.00017688,2]
[369002855,1751431843224,-815.94,0.00017688,2]
[369002856,1751431843233,-1002.97,0.00017688,2]
[369002857,1751431843242,-460.0,0.00017688,2]
[369002858,1751431843252,-460.0,0.00017688,2]
[369002859,1751431843262,-460.0,0.00017688,2]
[369002860,1751431843272,-460.0,0.00017688,2]
[369002861,1751431843281,-460.0,0.00017688,2]
[369002862,1751431843291,-257.21,0.00017688,2]
[369002863,1751431843300,-460.0,0.0001769,2]
[369002864,1751431843309,-460.0,0.0001769,2]
[369002865,1751431843319,-460.0,0.0001769,2]
[369002866,1751431843429,-460.0,0.0001769,2]
[369002867,1751431843440,-460.0,0.0001769,2]
[369002868,1751431843450,-460.0,0.0001769,2]
[369002869,1751431843460,-460.0,0.0001769,2]
[369002870,1751431843473,-460.0,0.0001769,2]
[369002871,1751431843482,-460.0,0.0001769,2]
[369002872,1751431843491,-460.0,0.0001769,2]
[369002873,1751431843501,-2037.55,0.0001769,2]
[369002874,1751431843510,-460.0,0.0001769,2]
[369002875,1751431843519,-460.0,0.0001769,2]
[369002876,1751431843529,-460.0,0.0001769,2]
[369002877,1751431843539,-460.0,0.0001769,2]
[369002878,1751431843548,-460.0,0.0001769,2]
[369002879,1751431843558,-460.0,0.0001769,2]
[369002880,1751431843568,-460.0,0.0001769,2]
[369002881,1751431843579,-460.0,0.0001769,2]
[369002882,1751431843588,-460.0,0.0001769,2]
[369002883,1751431843598,-460.0,0.0001769,2]
[369002884,1751431843608,-460.0,0.0001769,2]
[369002885,1751431843619,-460.0,0.0001769,2]
[369002886,1751431843629,-551.63096001,0.00017692,2]
[369002887,1751431843640,-460.0,0.00017692,2]
[369002888,1751431843650,-1417.43,0.00017692,2]
[369002889,1751431843662,-460.0,0.00017692,2]
[369002890,1751431843672,-460.0,0.00017692,2]
[369002891,1751431843681,-460.0,0.00017692,2]
[369002892,1751431843691,-460.0,0.00017692,2]
[369002893,1751431843700,-460.0,0.00017692,2]
[369002894,1751431843710,-460.0,0.00017692,2]
[369002895,1751431843720,-588.68,0.00017692,2]
[369002896,1751431843729,-460.0,0.00017692,2]
[369002897,1751431843739,-652.03,0.00017692,2]
[369002898,1751431843749,-460.0,0.00017692,2]
[369002899,1751431843758,-1826.62,0.00017692,2]
[369002900,1751431843768,-318.43212543,0.00017765,2]
[369002901,1751431843778,-211.6603477,0.00017789,2]
[369002902,1751431843788,-460.0,0.00017789,2]
[369002903,1751431843797,-460.0,0.00017789,2]
[369002904,1751431843807,-460.0,0.00017789,2]
[369002905,1751431843816,-460.0,0.00017789,2]
[369002906,1751431843826,-470.60737682,0.00017789,2]
[369002907,1751431843835,-460.0,0.00017789,2]
[369002908,1751431843845,-496.35769034,0.00017789,2]
[369002909,1751431843854,-460.0,0.00017789,2]
[369002910,1751431843863,-460.0,0.00017789,2]
[369002911,1751431843873,-460.0,0.00017789,2]
[369002912,1751431843882,-460.0,0.00017789,2]
[369002913,1751431843892,-268.18293961,0.00017789,2]
[369002914,1751431843901,-460.0,0.00017789,2]
[369002915,1751431843912,-460.0,0.00017789,2]
[369002916,1751431843921,-591.0395663,0.00017789,2]
[369002917,1751431843930,-460.0,0.00017789,2]
[369002918,1751431843940,-460.0,0.00017789,2]
[369002919,1751431843949,-460.0,0.00017789,2]
[369002920,1751431843959,-460.0,0.00017789,2]
[369002921,1751431843969,-460.0,0.00017789,2]
[369002922,1751431843978,-460.0,0.00017789,2]
[369002923,1751431843988,-460.0,0.00017789,2]
[369002924,1751431843998,-266.02449672,0.00017789,2]
[369002925,1751431844007,-460.0,0.00017789,2]
[369002926,1751431844017,-460.0,0.00017789,2]
[369002927,1751431844026,-450.7415841,0.00017789,2]
[369002928,1751431844035,-357.24,0.00017789,2]
[369002929,1751431844044,-460.0,0.00017789,2]
[369002930,1751431844055,-467.07138665,0.00017789,2]
[369002931,1751431844065,-537.78,0.00017792,2]
[369002932,1751431844074,-460.0,0.00017792,2]
[369002933,1751431844084,-460.0,0.00017961,2]
[369002934,1751431844093,-460.0,0.00017961,2]
[369002935,1751431844102,-692.3,0.00017961,2]
[369002936,1751431844112,-150.16796441,0.00017961,2]
[369002937,1751431844121,-460.0,0.00017961,2]
[369002938,1751431844130,-460.0,0.00017961,2]
[369002939,1751431844139,-1199.76,0.00017961,2]
[369002940,1751431844149,-460.0,0.00017962,2]
[369002941,1751431844159,-719.15,0.00017962,2]
[369002942,1751431844168,-460.0,0.00017962,2]
[369002943,1751431844179,-815.94,0.00017962,2]
[369002944,1751431844188,-1002.97,0.00017962,2]
[369002945,1751431844198,-460.0,0.00017962,2]
[369002946,1751431844207,-460.0,0.00017962,2]
[369002947,1751431844217,-516.25,0.00017962,2]
[369002948,1751431844227,-460.0,0.00017962,2]
[369002949,1751431844235,-460.0,0.00017962,2]
[369002950,1751431844247,-284.50404704,0.00017964,2]
[369002951,1751431844265,-460.0,0.00017964,2]
[369002952,1751431844278,-460.0,0.00017964,2]
[369002953,1751431844288,-460.0,0.00017964,2]
[369002954,1751431844298,-460.0,0.00017964,2]
[369002955,1751431844308,-227.32,0.00017964,2]
[369002956,1751431844318,-460.0,0.00017964,2]
[369002957,1751431844328,-460.0,0.00017964,2]
[369002958,1751431844337,-2037.55,0.00017964,2]
[369002959,1751431844347,-460.0,0.00017964,2]
[369002960,1751431844357,-460.0,0.00017964,2]
[369002961,1751431844367,-421.86133626,0.00017964,2]
[369002962,1751431844376,-460.0,0.00017964,2]
[369002963,1751431844386,-460.0,0.00017964,2]
[369002964,1751431844396,-460.0,0.00017964,2]
[369002965,1751431844406,-460.0,0.00017964,2]
[369002966,1751431844416,-460.0,0.00017964,2]
[369002967,1751431844426,-460.0,0.00017964,2]
[369002968,1751431844435,-460.0,0.00017964,2]
[369002969,1751431844445,-460.0,0.00017964,2]
[369002970,1751431844456,-382.58,0.00017966,2]
[369002971,1751431844466,-1417.43,0.00017966,2]
[369002972,1751431844476,-460.0,0.00017966,2]
[369002973,1751431844485,-460.0,0.00017966,2]
[369002974,1751431844495,-460.0,0.00017966,2]
[369002975,1751431844505,-460.0,0.00017966,2]
[369002976,1751431844515,-460.0,0.00017966,2]
[369002977,1751431844525,-460.0,0.00017966,2]
[369002978,1751431844534,-588.68,0.00017966,2]
[369002979,1751431844544,-460.0,0.00017966,2]
[369002980,1751431844554,-652.03,0.00017966,2]
[369002981,1751431844563,-460.0,0.00017966,2]
[369002982,1751431844573,-1826.62,0.00017966,2]
[369002983,1751431844582,-460.0,0.00018063,2]
[369002984,1751431844592,-460.0,0.00018063,2]
[369002985,1751431844602,-191.88458879,0.00018063,2]
[369002986,1751431844611,-460.0,0.00018063,2]
[369002987,1751431844621,-448.85,0.00018063,2]
[369002988,1751431844631,-460.0,0.00018063,2]
[369002989,1751431844640,-529.5,0.00018063,2]
[369002990,1751431844650,-217.06,0.00018063,2]
[369002991,1751431844660,-460.0,0.00018063,2]
[369002992,1751431844669,-460.0,0.00018063,2]
[369002993,1751431844679,-460.0,0.00018063,2]
[369002994,1751431844689,-460.0,0.00018063,2]
[369002995,1751431844699,-460.0,0.00018063,2]
[369002996,1751431844708,-398.75583671,0.00018063,2]
[369002997,1751431844718,-460.0,0.00018063,2]
[369002998,1751431844728,-460.0,0.00018063,2]
[369002999,1751431844738,-460.0,0.00018063,2]
[369003000,1751431844748,-460.0,0.00018063,2]
[369003001,1751431844758,-471.71,0.00018063,2]
[369003002,1751431844768,-460.0,0.00018063,2]
[369003003,1751431844778,-1000.0,0.00018064,2]
[369003004,1751431844788,-1000.0,0.00018064,2]
[369003005,1751431844797,-1000.0,0.00018064,2]
[369003006,1751431844807,-1000.0,0.00018064,2]
[369003007,1751431844816,-920.2450929,0.00018064,2]
[369003008,1751431844826,-422.16322001,0.00018064,2]
[369003009,1751431844836,-537.78,0.00018066,2]
[369003010,1751431844846,-2864.9618803,0.00018082,2]
[369003011,1751431844856,-2849.00148034,0.00018179,2]
[369003012,1751431844866,-151.0,0.000182,2]
[369003013,1751431844875,-938.84,0.00018228,3]
[369003014,1751431844890,-469.42,0.00018228,3]
[369003015,1751431844900,-196.04967083,0.00018235,2]
[369003016,1751431844910,-692.3,0.00018235,2]
[369003017,1751431844919,-460.0,0.00018235,2]
[369003018,1751431844929,-460.0,0.00018235,2]
[369003019,1751431844939,-1199.76,0.00018235,2]
[369003020,1751431844949,-490.24,0.00018236,2]
[369003021,1751431844960,-719.15,0.00018236,2]
[369003022,1751431844970,-460.0,0.00018236,2]
[369003023,1751431844980,-815.94,0.00018236,2]
[369003024,1751431844990,-1002.97,0.00018236,2]
[369003025,1751431845116,-460.0,0.00018236,2]
[369003026,1751431845127,-460.0,0.00018236,2]
[369003027,1751431845137,-460.0,0.00018236,2]
[369003028,1751431845147,-460.0,0.00018236,2]
[369003029,1751431845156,-420.0,0.00018237,2]
[369003030,1751431845167,-566.23,0.00018238,2]
[369003031,1751431845178,-460.0,0.00018238,2]
[369003032,1751431845187,-460.0,0.00018238,2]
[369003034,1751431845197,-460.0,0.00018238,2]
[369003036,1751431845207,-460.0,0.00018238,2]
[369003037,1751431845217,-2037.55,0.00018238,2]
[369003038,1751431845227,-460.0,0.00018238,2]
[369003039,1751431845236,-460.0,0.00018238,2]
[369003040,1751431845245,-460.0,0.00018238,2]
[369003041,1751431845256,-482.87411501,0.00018238,2]
[369003042,1751431845266,-460.0,0.00018238,2]
[369003043,1751431845275,-460.0,0.00018238,2]
[369003045,1751431845285,-460.0,0.00018238,2]
[369003046,1751431845295,-353.84,0.00018238,2]
[369003047,1751431845304,-1417.43,0.0001824,2]
[369003048,1751431845313,-460.0,0.0001824,2]
[369003049,1751431845324,-460.0,0.0001824,2]
[369003050,1751431845333,-460.0,0.0001824,2]
[369003051,1751431845344,-460.0,0.0001824,2]
[369003052,1751431845353,-460.0,0.0001824,2]
[369003053,1751431845363,-588.68,0.0001824,2]
[369003055,1751431845374,-460.0,0.0001824,2]
[369003056,1751431845384,-652.03,0.0001824,2]
[369003057,1751431845393,-460.0,0.0001824,2]
[369003058,1751431845402,-1826.62,0.0001824,2]
[369003059,1751431845412,-460.0,0.00018337,2]
[369003060,1751431845422,-460.0,0.00018337,2]
[369003061,1751431845431,-460.0,0.00018337,2]
[369003062,1751431845440,-460.0,0.00018337,2]
[369003063,1751431845449,-460.0,0.00018337,2]
[369003064,1751431845459,-154.2078317,0.00018337,2]
[369003065,1751431845468,-460.0,0.00018337,2]
[369003066,1751431845478,-178.36017632,0.00018337,2]
[369003067,1751431845490,-527.29341352,0.00018337,2]
[369003068,1751431845500,-460.0,0.00018337,2]
[369003069,1751431845509,-460.0,0.00018337,2]
[369003070,1751431845518,-460.0,0.00018337,2]
[369003071,1751431845528,-460.0,0.00018337,2]
[369003072,1751431845538,-537.78,0.0001834,2]
[369003073,1751431845547,-692.3,0.00018509,2]
[369003074,1751431845557,-460.0,0.00018509,2]
[369003075,1751431845567,-460.0,0.00018509,2]
[369003076,1751431845577,-1199.76,0.00018509,2]
[369003077,1751431845587,-719.15,0.0001851,2]
[369003078,1751431845596,-815.94,0.0001851,2]
[369003079,1751431845606,-1002.97,0.0001851,2]
[369003080,1751431845616,-518.79,0.0001851,2]
[369003081,1751431845625,-460.0,0.0001851,2]
[369003082,1751431845636,-460.0,0.0001851,2]
[369003083,1751431845645,-460.0,0.0001851,2]
[369003084,1751431845655,-374.60476692,0.00018512,2]
[369003085,1751431845665,-460.0,0.00018512,2]
[369003086,1751431845676,-460.0,0.00018512,2]
[369003087,1751431845685,-460.0,0.00018512,2]
[369003088,1751431845695,-2037.55,0.00018512,2]
[369003089,1751431845704,-460.0,0.00018512,2]
[369003091,1751431845714,-460.0,0.00018512,2]
[369003093,1751431845723,-460.0,0.00018512,2]
[369003095,1751431845732,-460.0,0.00018512,2]
[369003097,1751431845742,-460.0,0.00018512,2]
[369003099,1751431845752,-302.44,0.00018512,2]
[369003101,1751431845762,-1417.43,0.00018514,2]
[369003103,1751431845771,-460.0,0.00018514,2]
[369003105,1751431845780,-460.0,0.00018514,2]
[369003107,1751431845790,-460.0,0.00018514,2]
[369003109,1751431845800,-460.0,0.00018514,2]
[369003111,1751431845811,-460.0,0.00018514,2]
[369003112,1751431845820,-588.68,0.00018514,2]
[369003113,1751431845830,-460.0,0.00018514,2]
[369003114,1751431845840,-652.03,0.00018514,2]
[369003115,1751431845850,-460.0,0.00018514,2]
[369003116,1751431845859,-1826.62,0.00018514,2]
[369003117,1751431845869,-460.0,0.00018611,2]
[369003118,1751431845878,-460.0,0.00018611,2]
[369003119,1751431845888,-460.0,0.00018611,2]
[369003120,1751431845898,-248.91,0.00018611,2]
[369003121,1751431845908,-460.0,0.00018611,2]
[369003122,1751431845919,-460.0,0.00018611,2]
[369003123,1751431845928,-460.0,0.00018611,2]
[369003124,1751431845938,-460.0,0.00018611,2]
[369003125,1751431845948,-460.0,0.00018611,2]
[369003126,1751431845957,-537.78,0.00018614,2]
[369003127,1751431845967,-837.27862799,0.00018643,2]
[369003128,1751431845977,-847.65867985,0.00018643,2]
[369003129,1751431845986,-230.34465076,0.00018643,2]
[369003130,1751431845997,-215.04179405,0.00018643,2]
[369003131,1751431846006,-213.90888375,0.00018643,2]
[369003132,1751431846015,-160.0,0.00018643,2]
[369003133,1751431846025,-160.0,0.00018643,2]
[369003134,1751431846034,-160.0,0.00018643,2]
[369003135,1751431846044,-160.0,0.00018643,2]
[369003136,1751431846054,-160.0,0.00018643,2]
[369003137,1751431846063,-12573.65100011,0.00018643,2]
[369003138,1751431846073,-692.3,0.00018783,2]
[369003139,1751431846083,-358.84,0.00018783,2]
[369003140,1751431846092,-460.0,0.00018783,2]
[369003141,1751431846102,-1199.76,0.00018783,2]
[369003142,1751431846112,-719.15,0.00018784,2]
[369003143,1751431846121,-815.94,0.00018784,2]
[369003144,1751431846130,-1002.97,0.00018784,2]
[369003145,1751431846140,-460.0,0.00018784,2]
[369003146,1751431846150,-460.0,0.00018784,2]
[369003147,1751431846159,-460.0,0.00018786,2]
[369003148,1751431846169,-460.0,0.00018786,2]
[369003149,1751431846183,-516.29,0.00018786,2]
[369003150,1751431846192,-2037.55,0.00018786,2]
[369003151,1751431846201,-460.0,0.00018786,2]
[369003152,1751431846211,-460.0,0.00018786,2]
[369003153,1751431846221,-460.0,0.00018786,2]
[369003155,1751431846231,-460.0,0.00018786,2]
[369003156,1751431846240,-460.0,0.00018786,2]
[369003157,1751431846251,-1417.43,0.00018788,2]
[369003158,1751431846261,-398.68,0.00018788,2]
[369003159,1751431846270,-460.0,0.00018788,2]
[369003160,1751431846280,-460.0,0.00018788,2]
[369003162,1751431846290,-460.0,0.00018788,2]
[369003163,1751431846299,-460.0,0.00018788,2]
[369003164,1751431846310,-588.68,0.00018788,2]
[369003165,1751431846320,-514.29,0.00018788,2]
[369003166,1751431846329,-652.03,0.00018788,2]
[369003167,1751431846339,-539.34,0.00018788,2]
[369003168,1751431846348,-1826.62,0.00018788,2]
[369003169,1751431846358,-460.0,0.00018885,2]
[369003170,1751431846368,-204.64733854,0.00018885,2]
[369003171,1751431846379,-460.0,0.00018885,2]
[369003174,1751431846399,-460.0,0.00018885,2]
[369003176,1751431846410,-566.64,0.00018885,2]
[369003178,1751431846420,-460.0,0.00018885,2]
[369003180,1751431846430,-460.0,0.00018885,2]
[369003182,1751431846440,-537.78,0.00018888,2]
[369003184,1751431846449,-2131.93864915,0.000189,2]
[369003186,1751431846459,-2849.00148034,0.00018981,2]
[369003188,1751431846469,-151.0,0.00019,2]
[369003190,1751431846479,-692.3,0.00019057,2]
[369003192,1751431846488,-460.0,0.00019057,2]
[369003194,1751431846498,-1199.76,0.00019057,2]
[369003196,1751431846508,-719.15,0.00019058,2]
[369003198,1751431846517,-815.94,0.00019058,2]
[369003200,1751431846527,-1002.97,0.00019058,2]
[369003203,1751431846537,-460.0,0.00019058,2]
[369003205,1751431846546,-460.0,0.00019058,2]
[369003220,1751431846670,-460.0,0.0001906,2]
[369003222,1751431846688,-465.59041278,0.0001906,2]
[369003224,1751431846698,-2037.55,0.0001906,2]
[369003226,1751431846707,-457.86,0.0001906,2]
[369003229,1751431846717,-460.0,0.0001906,2]
[369003231,1751431846726,-460.0,0.0001906,2]
[369003232,1751431846735,-181.27395271,0.0001906,2]
[369003235,1751431846745,-1417.43,0.00019062,2]
[369003237,1751431846754,-460.0,0.00019062,2]
[369003239,1751431846764,-460.0,0.00019062,2]
[369003240,1751431846773,-460.0,0.00019062,2]
[369003243,1751431846783,-460.0,0.00019062,2]
[369003245,1751431846792,-588.68,0.00019062,2]
[369003247,1751431846801,-652.03,0.00019062,2]
[369003248,1751431846811,-1826.62,0.00019062,2]
[369003250,1751431846820,-157.10271728,0.00019159,2]
[369003252,1751431846830,-460.0,0.00019159,2]
[369003255,1751431846840,-460.0,0.00019159,2]
[369003257,1751431846850,-537.78,0.00019162,2]
[369003258,1751431846859,-55096.8133402,0.00019178,2]
[369003260,1751431846868,-233.701952,0.00019178,2]
[369003262,1751431846878,-151.0,0.00019329,2]
[369003264,1751431846887,-151.0,0.00019329,2]
[369003267,1751431846898,-151.0,0.00019329,2]
[369003269,1751431846908,-516.025726,0.00019329,2]
[369003271,1751431846918,-267.562191,0.00019329,2]
[369003273,1751431846929,-516.025726,0.00019329,2]
[369003275,1751431846939,-151.0,0.00019329,2]
[369003277,1751431846949,-151.0,0.00019329,2]
[369003279,1751431846959,-151.0,0.00019329,2]
[369003281,1751431846968,-151.0,0.00019329,2]
[369003283,1751431846978,-266.561174,0.00019329,2]
[369003285,1751431846987,-266.561174,0.00019329,2]
[369003287,1751431846997,-1344.141414,0.00019329,2]
[369003289,1751431847006,-151.0,0.00019329,2]
[369003291,1751431847016,-1344.141414,0.00019329,2]
[369003293,1751431847025,-48224.83153581,0.00019329,2]
[369003295,1751431847035,-692.3,0.00019331,2]
[369003297,1751431847044,-460.0,0.00019331,2]
[369003299,1751431847054,-1199.76,0.00019331,2]
[369003301,1751431847063,-719.15,0.00019332,2]
[369003303,1751431847073,-815.94,0.00019332,2]
[369003305,1751431847083,-1002.97,0.00019332,2]
[369003307,1751431847092,-460.0,0.00019332,2]
[369003309,1751431847101,-460.0,0.00019332,2]
[369003311,1751431847111,-575.43,0.00019334,2]
[369003313,1751431847121,-2037.55,0.00019334,2]
[369003315,1751431847130,-460.0,0.00019334,2]
[369003317,1751431847139,-1417.43,0.00019336,2]
[369003318,1751431847148,-460.0,0.00019336,2]
[369003320,1751431847157,-460.0,0.00019336,2]
[369003321,1751431847167,-460.0,0.00019336,2]
[369003324,1751431847179,-460.0,0.00019336,2]
[369003326,1751431847189,-588.68,0.00019336,2]
[369003328,1751431847198,-652.03,0.00019336,2]
[369003330,1751431847207,-1826.62,0.00019336,2]
[369003332,1751431847219,-151.0,0.00019412,2]
[369003334,1751431847227,-533.106935,0.00019412,2]
[369003336,1751431847236,-533.106935,0.00019412,2]
[369003338,1751431847246,-460.0,0.00019433,2]
[369003340,1751431847256,-460.0,0.00019433,2]
[369003341,1751431847266,-537.78,0.00019436,2]
[369003344,1751431847277,-692.3,0.00019605,2]
[369003345,1751431847287,-460.0,0.00019605,2]
[369003346,1751431847296,-1199.76,0.00019605,2]
[369003348,1751431847305,-719.15,0.00019606,2]
[369003350,1751431847314,-815.94,0.00019606,2]
[369003351,1751431847324,-1002.97,0.00019606,2]
[369003352,1751431847334,-460.0,0.00019606,2]
[369003353,1751431847344,-460.0,0.00019606,2]
[369003354,1751431847353,-2037.55,0.00019608,2]
[369003355,1751431847362,-460.0,0.00019608,2]
[369003356,1751431847371,-1417.43,0.0001961,2]
[369003357,1751431847380,-460.0,0.0001961,2]
[369003358,1751431847394,-460.0,0.0001961,2]
[369003359,1751431847404,-460.0,0.0001961,2]
[369003360,1751431847414,-460.0,0.0001961,2]
[369003361,1751431847423,-588.68,0.0001961,2]
[369003362,1751431847432,-652.03,0.0001961,2]
[369003363,1751431847442,-1826.62,0.0001961,2]
[369003364,1751431847451,-460.0,0.00019707,2]
[369003365,1751431847460,-460.0,0.00019707,2]
[369003366,1751431847470,-537.78,0.0001971,2]
[369003367,1751431847480,-2849.00148034,0.00019784,2]
[369003368,1751431847490,-692.3,0.00019879,2]
[369003369,1751431847499,-460.0,0.00019879,2]
[369003370,1751431847508,-1199.76,0.00019879,2]
[369003371,1751431847519,-719.15,0.0001988,2]
[369003372,1751431847528,-815.94,0.0001988,2]
[369003373,1751431847537,-1002.97,0.0001988,2]
[369003374,1751431847546,-460.0,0.0001988,2]
[369003375,1751431847556,-460.0,0.0001988,2]
[369003376,1751431847565,-2037.55,0.00019882,2]
[369003377,1751431847575,-460.0,0.00019882,2]
[369003378,1751431847584,-151.0,0.00019884,2]
[369003379,1751431847593,-1417.43,0.00019884,2]
[369003380,1751431847603,-151.0,0.00019884,2]
[369003381,1751431847612,-460.0,0.00019884,2]
[369003382,1751431847622,-151.0,0.00019884,2]
[369003383,1751431847631,-460.0,0.00019884,2]
[369003384,1751431847640,-460.0,0.00019884,2]
[369003385,1751431847649,-744.979355,0.00019884,2]
[369003386,1751431847659,-744.979355,0.00019884,2]
[369003387,1751431847668,-257.809115,0.00019884,2]
[369003388,1751431847678,-257.809115,0.00019884,2]
[369003389,1751431847687,-460.0,0.00019884,2]
[369003390,1751431847696,-151.0,0.00019884,2]
[369003391,1751431847705,-588.68,0.00019884,2]
[369003392,1751431847715,-652.03,0.00019884,2]